bitfinex/quotes_SOLUSD_20250829
["timestamp","ask_amount","ask_price","bid_price","bid_amount"]
[1756427575199,39.73775558,216.21,216.2,0.1]
[1756427575362,13.59559401,216.21,216.2,0.1]
[1756427575562,23.43662887,216.21,216.2,0.1]
[1756427575763,13.59559401,216.21,216.2,0.1]
[1756427575966,0.68,216.35,216.2,81.84103486]
[1756427576162,9.84103486,216.3,216.21,0.7]
[1756427576467,26.0,216.33,216.21,0.7]
[1756427576670,9.84103486,216.32,216.26,9.84103486]
[1756427576869,9.84103486,216.31,216.27,0.7]
[1756427577086,9.84103486,216.28,216.2,0.1]
[1756427577286,10.125358,216.21,216.2,0.1]
[1756427577792,23.72095201,216.21,216.2,0.1]
[1756427577961,13.87991715,216.21,216.2,0.1]
[1756427578363,20.0,216.38,216.2,10.64103486]
[1756427578699,13.59559401,216.27,216.22,9.84103486]
[1756427578879,13.59559401,216.28,216.23,10.54103486]
[1756427579076,0.14216157,216.27,216.24,0.7]
[1756427579269,23.43662887,216.29,216.25,0.7]
[1756427579874,23.43662887,216.29,216.23,9.84103486]
[1756427580175,13.59559401,216.29,216.26,14.46509848]
[1756427580375,13.59559401,216.29,216.27,10.56103486]
[1756427580686,9.84103486,216.31,216.25,9.84103486]
[1756427580860,9.84103486,216.27,216.23,0.72]
[1756427581061,0.28432314,216.22,216.2,0.1]
[1756427581295,10.125358,216.22,216.2,0.1]
[1756427581493,13.59559401,216.21,216.2,0.1]
[1756427581681,0.28432314,216.24,216.21,0.72]
[1756427581984,0.28432314,216.24,216.2,0.1]
[1756427582190,0.28432314,216.24,216.2,0.82]
[1756427582576,13.59559401,216.21,216.2,0.1]
[1756427582777,24.39095201,216.21,216.2,0.1]
[1756427582978,13.87991715,216.21,216.2,0.1]
[1756427583172,0.14216157,216.28,216.2,10.66103486]
[1756427583373,13.59559401,216.29,216.2,10.66103486]
[1756427583374,13.73775558,216.26,216.2,10.66103486]
[1756427583666,23.57879044,216.21,216.2,0.1]
[1756427584188,23.72095201,216.21,216.2,0.1]
[1756427584771,13.87991715,216.21,216.2,0.82]
[1756427584973,4.6223537,216.34,216.2,15.28632109]
[1756427585167,9.84103486,216.31,216.24,9.84103486]
[1756427585371,23.43662887,216.3,216.24,9.84103486]
[1756427585590,13.59559401,216.3,216.25,0.72]
[1756427585773,13.59559401,216.28,216.25,0.72]
[1756427585972,13.59559401,216.28,216.23,9.84103486]
[1756427586170,0.28432314,216.29,216.24,0.72]
[1756427586488,0.28432314,216.23,216.2,0.1]
[1756427586683,0.28432314,216.21,216.2,0.1]
[1756427587376,0.28432314,216.21,216.2,0.82]
[1756427588097,0.67,216.47,216.27,26.0]
[1756427588278,0.67,216.51,216.41,9.84103486]
[1756427588469,9.84103486,216.46,216.41,45.22]
[1756427588871,9.84103486,216.44,216.37,10.56103486]
[1756427589068,9.84103486,216.44,216.38,55.04103486]
[1756427589286,9.84103486,216.4,216.33,9.84103486]
[1756427589504,42.16628175,216.5,216.34,45.2]
[1756427589505,9.84103486,216.39,216.34,45.2]
[1756427589685,13.59559401,216.39,216.34,55.04103486]
[1756427589999,13.59559401,216.45,216.37,9.84103486]
[1756427590299,23.43662887,216.42,216.35,10.56103486]
[1756427590470,23.43662887,216.42,216.32,35.84103486]
[1756427590471,13.59559401,216.37,216.32,35.84103486]
[1756427590672,23.72095201,216.37,216.36,45.12]
[1756427590866,23.78095201,216.37,216.36,45.12]
[1756427591085,23.78095201,216.37,216.32,26.72]
[1756427591288,23.78095201,216.37,216.34,45.1]
[1756427591472,13.93991715,216.37,216.34,45.1]
[1756427591672,13.93991715,216.37,216.3,9.84103486]
[1756427591673,23.72095201,216.36,216.3,9.84103486]
[1756427591872,23.72095201,216.36,216.29,10.56103486]
[1756427592087,23.72095201,216.34,216.3,45.04]
[1756427592495,13.87991715,216.32,216.27,33.34]
[1756427592703,13.87991715,216.32,216.28,45.02]
[1756427592886,13.87991715,216.32,216.28,45.74]
[1756427593396,20.0,216.58,216.31,35.84103486]
[1756427593697,9.84103486,216.43,216.37,9.84103486]
[1756427593899,9.84103486,216.41,216.38,45.04]
[1756427594073,13.59559401,216.41,216.38,45.04]
[1756427594272,13.59559401,216.41,216.38,45.76]
[1756427594473,13.59559401,216.42,216.38,45.76]
[1756427594705,9.84103486,216.42,216.38,45.76]
[1756427594874,23.43662887,216.39,216.27,0.72]
[1756427595070,13.59559401,216.32,216.27,10.56103486]
[1756427595272,13.59559401,216.32,216.28,43.88]
[1756427595475,4.62021984,216.44,216.28,43.88]
[1756427595476,0.67,216.45,216.3,9.84103486]
[1756427595681,9.84103486,216.46,216.39,9.84103486]
[1756427595877,9.84103486,216.4,216.22,33.59559401]
[1756427596101,9.84103486,216.4,216.34,9.84103486]
[1756427596102,13.73775558,216.39,216.34,9.84103486]
[1756427596402,13.73775558,216.39,216.34,55.76103486]
[1756427596591,0.28432314,216.39,216.34,55.76103486]
[1756427596790,10.125358,216.39,216.34,45.92]
[1756427596994,0.28432314,216.39,216.34,59.66338768]
[1756427597206,0.28432314,216.39,216.35,10.56103486]
[1756427597402,0.14216157,216.39,216.35,10.56103486]
[1756427597605,0.14216157,216.35,216.3,0.72]
[1756427597789,0.28432314,216.33,216.29,45.12]
[1756427597988,0.28432314,216.33,216.29,45.84]
[1756427598202,3.80070052,216.52,216.32,26.0]
[1756427598409,15.12881053,216.56,216.5,9.84103486]
[1756427598614,27.65,216.66,216.42,26.0]
[1756427598615,0.67,216.6,216.52,9.84103486]
[1756427598905,9.84103486,216.53,216.43,45.32]
[1756427599106,9.84103486,216.49,216.43,55.16103486]
[1756427599292,13.73775558,216.48,216.43,45.32]
[1756427599493,0.14216157,216.48,216.43,55.16103486]
[1756427599809,0.14216157,216.45,216.41,45.32]
[1756427599995,13.73775558,216.44,216.41,55.16103486]
[1756427600195,9.84103486,216.53,216.43,9.84103486]
[1756427600521,14.45911927,216.54,216.48,9.84103486]
[1756427600711,14.45911927,216.54,216.3,0.72]
[1756427600712,13.87991715,216.41,216.3,0.72]
[1756427601012,13.87991715,216.45,216.25,20.74]
[1756427601013,0.28432314,216.32,216.25,20.74]
[1756427601323,0.28432314,216.25,216.17,0.03]
[1756427601609,23.72095201,216.21,216.18,45.56]
[1756427601786,13.59559401,216.24,216.2,0.82]
[1756427601991,13.87991715,216.26,216.21,10.56103486]
[1756427602196,13.87991715,216.26,216.23,9.84103486]
[1756427602427,0.28432314,216.26,216.24,10.56103486]
[1756427602712,0.28432314,216.26,216.25,0.72]
[1756427603086,0.28432314,216.26,216.24,45.54]
[1756427603595,0.28432314,216.24,216.21,0.72]
[1756427603795,0.28432314,216.24,216.21,45.54]
[1756427604294,0.28432314,216.24,216.21,46.26]
[1756427605095,0.28432314,216.24,216.22,9.84103486]
[1756427606310,0.28432314,216.26,216.23,10.56103486]
[1756427606615,0.14216157,216.26,216.2,0.1]
[1756427606917,0.14216157,216.25,216.22,9.84103486]
[1756427607094,13.59559401,216.28,216.24,9.84103486]
[1756427607301,13.59559401,216.32,216.26,9.84103486]
[1756427607511,23.43662887,216.32,216.27,45.24]
[1756427607695,0.14216157,216.29,216.27,45.24]
[1756427607896,0.14216157,216.29,216.22,0.72]
[1756427607897,0.14216157,216.29,216.26,9.84103486]
[1756427608100,0.28432314,216.29,216.24,9.84103486]
[1756427608293,0.28432314,216.29,216.25,45.2]
[1756427608609,0.28432314,216.29,216.26,9.84103486]
[1756427608813,0.28432314,216.29,216.26,10.56103486]
[1756427609187,0.14216157,216.32,216.28,9.84103486]
[1756427609612,0.28432314,216.32,216.27,10.56103486]
[1756427609924,0.14216157,216.32,216.27,10.56103486]
[1756427610121,0.14216157,216.32,216.28,10.50103486]
[1756427610330,0.06,216.37,216.31,9.84103486]
[1756427610528,0.06,216.37,216.35,4.62214005]
[1756427610708,0.06,216.37,216.35,14.46317491]
[1756427610908,0.06,216.37,216.35,0.66]
[1756427611215,9.84103486,216.36,216.33,45.06]
[1756427611406,0.77,216.37,216.33,45.06]
[1756427611407,0.28432314,216.34,216.33,45.06]
[1756427612006,0.28432314,216.34,216.33,55.56103486]
[1756427612206,13.59559401,216.36,216.33,55.56103486]
[1756427612407,0.06,216.37,216.34,9.84103486]
[1756427612617,0.06,216.37,216.35,44.98]
[1756427613428,10.125358,216.36,216.29,10.50103486]
[1756427613724,0.28432314,216.36,216.33,44.96]
[1756427614106,0.28432314,216.34,216.33,44.96]
[1756427614305,0.28432314,216.34,216.33,45.62]
[1756427614710,0.28432314,216.34,216.33,44.96]
[1756427615625,0.28432314,216.34,216.3,9.84103486]
[1756427615822,0.28432314,216.34,216.28,9.84103486]
[1756427616009,9.84103486,216.33,216.29,44.72]
[1756427616204,13.59559401,216.33,216.29,44.72]
[1756427616402,0.28432314,216.34,216.29,44.72]
[1756427616812,13.59559401,216.32,216.29,44.72]
[1756427617014,0.28432314,216.3,216.29,44.72]
[1756427617231,23.72095201,216.3,216.22,0.03]
[1756427617423,10.125358,216.26,216.22,44.69]
[1756427618213,23.72095201,216.23,216.22,0.03]
[1756427618734,28.34565718,216.23,216.22,0.03]
[1756427618938,29.05565718,216.23,216.22,0.03]
[1756427619531,14.58991715,216.23,216.22,0.03]
[1756427619733,26.0,216.21,216.2,0.1]
[1756427619918,23.72095201,216.21,216.2,0.1]
[1756427620121,13.87991715,216.2,216.19,0.03]
[1756427620323,23.72095201,216.2,216.19,0.03]
[1756427620518,24.43095201,216.2,216.19,0.03]
[1756427620718,55.05629891,216.2,216.19,0.03]
[1756427621224,39.87991715,216.18,216.17,0.03]
[1756427621419,49.72095201,216.18,216.17,0.03]
[1756427621617,13.87991715,216.17,216.15,0.03]
[1756427621839,23.72095201,216.16,216.15,0.03]
[1756427622005,24.43095201,216.16,216.15,0.03]
[1756427622816,29.05715482,216.16,216.15,0.03]
[1756427623429,26.0,216.13,216.04,44.42]
[1756427623639,0.28432314,216.11,215.99,0.03]
[1756427623814,23.72095201,216.11,215.99,0.03]
[1756427624015,24.43095201,216.11,215.99,0.03]
[1756427624208,24.43095201,216.11,216.1,1e-08]
[1756427624814,29.05822515,216.11,216.1,1e-08]
[1756427625010,26.0,216.08,215.99,0.03]
[1756427625213,13.87991715,216.0,215.99,0.03]
[1756427627111,23.72095201,216.0,215.99,0.03]
[1756427627814,13.59559401,216.03,215.99,10.53103486]
[1756427628058,13.59559401,216.05,216.0,10.50103486]
[1756427628235,0.14216157,216.02,216.0,0.66]
[1756427628417,0.14216157,216.03,216.01,10.50103486]
[1756427628621,9.84103486,216.06,216.02,0.66]
[1756427628823,13.59559401,216.06,216.05,0.03]
[1756427629032,13.73775558,216.06,216.05,0.03]
[1756427629320,18.36609955,216.06,216.05,0.03]
[1756427629521,13.87991715,216.06,216.05,0.03]
[1756427629729,13.73775558,216.06,216.05,0.03]
[1756427629926,13.59559401,216.06,216.05,0.03]
[1756427630212,23.43662887,216.06,216.05,0.03]
[1756427630425,13.73775558,216.06,216.05,0.03]
[1756427630627,13.87991715,216.06,216.05,0.03]
[1756427631453,23.72095201,216.06,216.05,0.03]
[1756427632946,28.34929598,216.06,216.05,0.03]
[1756427633330,29.05929598,216.06,216.05,0.03]
[1756427636030,19.21826112,216.06,216.05,0.03]
[1756427636228,29.05929598,216.06,216.05,0.03]
[1756427637432,28.34929598,216.06,216.05,0.03]
[1756427637748,29.05929598,216.06,216.05,0.03]
[1756427637921,29.05929598,216.06,215.99,0.03]
[1756427637922,39.87991715,216.02,215.99,0.03]
[1756427638122,23.72095201,216.0,215.99,0.03]
[1756427639848,13.87991715,216.0,215.99,0.69]
[1756427640027,13.59559401,216.0,215.99,0.69]
[1756427640224,13.73775558,216.0,215.99,0.69]
[1756427640528,13.87991715,216.0,215.99,0.72]
[1756427641050,13.59559401,216.0,215.99,0.72]
[1756427641236,23.43662887,216.0,215.99,0.03]
[1756427641433,23.43662887,216.0,215.96,0.03]
[1756427641434,39.59559401,215.97,215.96,1e-08]
[1756427641651,13.59559401,215.97,215.96,1e-08]
[1756427641852,13.59559401,215.97,215.96,0.69000001]
[1756427641853,13.87991715,215.97,215.96,0.69000001]
[1756427642653,23.72095201,215.97,215.96,1e-08]
[1756427643726,13.87991715,215.97,215.96,1e-08]
[1756427643932,23.72095201,215.97,215.96,1e-08]
[1756427644133,18.51018987,215.97,215.96,1e-08]
[1756427644348,28.35122473,215.97,215.96,1e-08]
[1756427644544,54.35122473,215.97,215.96,1e-08]
[1756427644753,55.01122473,215.97,215.96,1e-08]
[1756427645062,29.01122473,215.97,215.96,1e-08]
[1756427645245,55.01122473,215.97,215.96,1e-08]
[1756427645437,44.5106187,215.95,215.94,0.03]
[1756427645636,23.72095201,215.95,215.94,0.03]
[1756427646244,28.35165356,215.95,215.94,0.03]
[1756427646853,29.01165356,215.95,215.94,0.03]
[1756427647057,0.28432314,215.85,215.83,0.79]
[1756427647357,0.28432314,215.85,215.84,0.69]
[1756427647553,13.87991715,215.84,215.83,0.1]
[1756427647858,23.72095201,215.84,215.83,0.1]
[1756427648954,24.38095201,215.84,215.83,0.1]
[1756427649471,13.87991715,215.84,215.83,0.1]
[1756427649644,0.28432314,215.84,215.83,0.1]
[1756427649848,23.57879044,215.84,215.83,0.1]
[1756427650262,13.59559401,215.84,215.83,0.1]
[1756427650548,13.59559401,215.84,215.83,0.79]
[1756427650854,56.63584894,215.98,215.83,15.26431104]
[1756427651061,56.63584894,215.98,215.83,0.1]
[1756427651062,9.84103486,215.84,215.83,0.1]
[1756427651238,0.66,215.95,215.83,0.79]
[1756427651443,0.14216157,215.89,215.86,4.63263226]
[1756427651663,9.84103486,215.92,215.87,0.69]
[1756427651851,26.0,215.94,215.84,0.69]
[1756427652153,0.14216157,215.87,215.84,0.69]
[1756427652356,0.28432314,215.87,215.83,0.1]
[1756427652563,0.28432314,215.85,215.83,0.1]
[1756427652964,0.28432314,215.85,215.83,0.79]
[1756427653165,0.28432314,215.85,215.83,0.1]
[1756427654543,23.72095201,215.84,215.83,0.1]
[1756427654869,24.38095201,215.84,215.83,0.1]
[1756427655046,0.28432314,215.83,215.82,0.1]
[1756427655250,24.38095201,215.83,215.82,0.1]
[1756427655754,19.17319333,215.83,215.82,0.1]
[1756427655953,29.01422819,215.83,215.82,0.1]
[1756427656569,19.17319333,215.83,215.82,0.1]
[1756427656754,49.72095201,215.83,215.82,0.1]
[1756427657266,29.01422819,215.83,215.82,0.1]
[1756427657471,23.72095201,215.83,215.82,0.1]
[1756427657873,13.59559401,215.83,215.82,10.63103486]
[1756427658095,13.59559401,215.83,215.82,0.79]
[1756427658569,13.59559401,215.83,215.82,10.63103486]
[1756427658951,13.59559401,215.83,215.82,15.26452573]
[1756427660072,13.59559401,215.93,215.82,26.84825291]
[1756427660278,13.59559401,215.93,215.89,9.84103486]
[1756427660572,13.59559401,215.93,215.89,10.53103486]
[1756427660877,13.59559401,215.95,215.92,9.84103486]
[1756427661080,13.65559401,215.97,215.92,9.84103486]
[1756427661371,0.06,215.97,215.96,9.84103486]
[1756427661981,0.06,215.97,215.93,9.84103486]
[1756427662475,0.06,215.97,215.95,9.84103486]
[1756427662685,0.06,215.97,215.96,9.84103486]
[1756427663454,0.34432314,215.97,215.96,9.84103486]
[1756427663656,0.06,216.0,215.96,10.53103486]
[1756427663856,13.71584894,216.16,216.01,30.6294153]
[1756427664084,9.84103486,216.11,216.04,9.84103486]
[1756427664258,13.59559401,216.09,216.03,9.84103486]
[1756427664468,13.59559401,216.09,216.05,9.84103486]
[1756427664782,13.59559401,216.12,216.06,9.84103486]
[1756427664981,0.28432314,216.11,216.06,9.84103486]
[1756427665162,23.43662887,216.12,216.06,9.84103486]
[1756427665357,13.59559401,216.1,216.05,9.84103486]
[1756427665562,13.59559401,216.15,216.09,9.84103486]
[1756427665778,13.59559401,216.15,216.1,9.84103486]
[1756427665970,22.8968838,216.16,216.1,9.84103486]
[1756427666388,13.59559401,216.15,216.1,9.84103486]
[1756427666582,13.59559401,216.15,216.11,10.53103486]
[1756427666786,0.2,216.19,216.14,9.84103486]
[1756427667087,13.87991715,216.17,216.13,9.84103486]
[1756427667263,13.59559401,216.17,216.13,9.84103486]
[1756427667587,24.09662887,216.17,216.1,9.84103486]
[1756427667783,0.28432314,216.16,216.11,9.84103486]
[1756427668088,13.59559401,216.18,216.13,9.84103486]
[1756427668283,13.59559401,216.18,216.09,9.84103486]
[1756427668284,0.14216157,216.14,216.09,9.84103486]
[1756427668461,0.14216157,216.08,215.98,0.69]
[1756427668663,0.14216157,216.02,215.98,0.69]
[1756427668863,0.28432314,216.02,215.98,9.84103486]
[1756427669087,0.28432314,216.02,215.99,10.53103486]
[1756427669763,0.28432314,216.02,216.01,9.84103486]
[1756427670087,0.28432314,216.02,216.01,10.53103486]
[1756427670486,0.28432314,216.02,216.01,9.84103486]
[1756427671084,0.28432314,216.03,216.01,9.84103486]
[1756427671288,0.28432314,216.03,216.02,10.55103486]
[1756427671674,13.59559401,216.13,216.02,10.55103486]
[1756427671873,13.59559401,216.15,216.11,9.84103486]
[1756427672077,10.52103486,216.18,216.11,9.84103486]
[1756427672279,13.59559401,216.18,216.13,9.84103486]
[1756427672696,23.43662887,216.18,216.1,0.71]
[1756427672878,23.43662887,216.16,216.06,0.71]
[1756427673195,0.68,216.18,216.06,0.71]
[1756427673196,13.87991715,216.12,216.07,9.84103486]
[1756427673371,13.87991715,216.12,216.08,10.55103486]
[1756427673787,13.87991715,216.12,216.08,9.84103486]
[1756427674092,13.87991715,216.1,216.05,9.84103486]
[1756427674299,13.87991715,216.1,216.06,9.84103486]
[1756427674674,14.55991715,216.1,216.04,9.84103486]
[1756427675083,24.40095201,216.1,216.04,9.84103486]
[1756427675493,26.0,216.04,215.97,0.71]
[1756427675689,13.87991715,216.03,216.0,9.84103486]
[1756427675892,13.87991715,216.03,216.0,10.55103486]
[1756427676472,26.0,215.98,215.95,0.03]
[1756427676676,13.87991715,215.96,215.95,0.03]
[1756427676890,23.72095201,215.96,215.95,0.03]
[1756427677308,23.72095201,215.96,215.92,0.03]
[1756427677309,24.40095201,215.96,215.92,0.03]
[1756427677508,49.72095201,215.93,215.92,0.03]
[1756427678130,13.87991715,215.93,215.92,0.03]
[1756427679593,50.40095201,215.93,215.92,0.03]
[1756427679797,29.03208246,215.93,215.92,0.03]
[1756427679998,23.72095201,215.93,215.92,0.03]
[1756427680296,39.87991715,215.93,215.92,0.03]
[1756427680806,50.40095201,215.93,215.92,0.03]
[1756427680982,13.59559401,215.91,215.9,0.03]
[1756427681185,49.72095201,215.91,215.9,0.03]
[1756427681501,50.40095201,215.91,215.9,0.03]
[1756427682698,29.03251145,215.91,215.9,0.03]
[1756427683302,0.28432314,215.86,215.82,0.1]
[1756427683478,0.28432314,215.86,215.82,4.73348095]
[1756427683983,0.28432314,215.86,215.83,0.71]
[1756427684200,0.28432314,215.86,215.83,10.55103486]
[1756427684424,0.68,215.96,215.85,9.84103486]
[1756427684622,39.59559401,215.91,215.86,9.84103486]
[1756427684926,0.14216157,215.9,215.89,0.03]
[1756427685129,23.57879044,215.9,215.89,0.03]
[1756427685306,24.40095201,215.9,215.89,0.03]
[1756427685721,24.40095201,215.9,215.87,0.03]
[1756427685722,39.73775558,215.88,215.87,0.03]
[1756427685916,49.72095201,215.88,215.87,0.03]
[1756427686118,50.40095201,215.88,215.87,0.03]
[1756427686322,45.19212022,215.88,215.87,0.03]
[1756427686498,55.03315508,215.88,215.87,0.03]
[1756427687613,50.40095201,215.88,215.87,0.03]
[1756427687817,39.59559401,215.88,215.87,0.03]
[1756427688019,13.59559401,215.88,215.87,9.87103486]
[1756427688315,13.59559401,215.88,215.87,15.21345251]
[1756427689231,9.84103486,215.99,215.87,26.79449665]
[1756427689417,13.59559401,215.99,215.93,9.84103486]
[1756427689602,9.84103486,216.01,215.95,9.84103486]
[1756427689806,9.84103486,215.99,215.93,9.84103486]
[1756427690111,13.87991715,215.98,215.93,9.84103486]
[1756427690304,9.84103486,215.99,215.93,9.84103486]
[1756427690506,0.28432314,215.97,215.92,9.84103486]
[1756427690720,13.87991715,215.97,215.91,9.84103486]
[1756427691136,30.6299359,215.99,215.82,0.1]
[1756427691137,26.0,215.84,215.82,0.1]
[1756427691334,23.72095201,215.83,215.82,0.1]
[1756427691840,24.40095201,215.83,215.82,0.1]
[1756427692712,29.03422819,215.83,215.82,0.1]
[1756427694112,26.0,215.74,215.73,0.1]
[1756427694323,0.28432314,215.64,215.58,0.71]
[1756427694529,0.28432314,215.62,215.58,0.71]
[1756427694734,13.87991715,215.62,215.6,4.63809553]
[1756427694912,13.87991715,215.62,215.61,0.81]
[1756427695113,23.72095201,215.62,215.61,0.1]
[1756427696736,13.87991715,215.62,215.61,0.1]
[1756427696915,13.87991715,215.62,215.61,10.65103486]
[1756427697119,13.87991715,215.62,215.61,0.81]
[1756427697434,13.87991715,215.62,215.61,0.1]
[1756427698004,13.87991715,215.62,215.61,4.7380038]
[1756427698810,0.68,215.74,215.61,26.88404816]
[1756427699012,9.84103486,215.73,215.66,9.84103486]
[1756427699533,9.84103486,215.73,215.67,9.84103486]
[1756427699733,26.0,215.7,215.66,9.84103486]
[1756427699927,26.0,215.69,215.66,9.84103486]
[1756427700123,0.28432314,215.68,215.66,9.84103486]
[1756427700312,0.28432314,215.68,215.65,9.84103486]
[1756427700313,0.14216157,215.68,215.65,9.84103486]
[1756427700513,0.68,215.74,215.61,59.8530133]
[1756427700514,9.84103486,215.74,215.67,9.84103486]
[1756427700715,9.84103486,215.72,215.68,4.63649851]
[1756427700917,13.59559401,215.71,215.68,4.63649851]
[1756427701231,13.59559401,215.74,215.68,4.63649851]
[1756427701415,0.14216157,215.71,215.68,4.63649851]
[1756427701619,13.73775558,215.68,215.61,43.62]
[1756427701814,0.14216157,215.67,215.62,16.23226045]
[1756427702035,0.14216157,215.65,215.62,16.23226045]
[1756427702237,0.14216157,215.65,215.62,26.07329531]
[1756427702827,43.52,215.78,215.62,26.07329531]
[1756427702828,0.72,215.83,215.64,9.84103486]
[1756427703163,10.56103486,215.83,215.77,9.84103486]
[1756427703310,9.84103486,215.82,215.73,0.66]
[1756427703515,9.84103486,215.79,215.73,9.84103486]
[1756427704030,9.84103486,215.82,215.76,9.84103486]
[1756427704231,9.84103486,215.83,215.77,9.84103486]
[1756427704427,9.84103486,215.83,215.73,0.66]
[1756427704626,9.84103486,215.83,215.77,9.84103486]
[1756427704825,9.84103486,215.83,215.71,43.52]
[1756427704826,13.05584894,216.0,215.82,9.84103486]
[1756427705038,9.84103486,215.94,215.87,9.84103486]
[1756427705222,9.84103486,215.95,215.89,9.84103486]
[1756427705536,9.84103486,215.92,215.85,9.84103486]
[1756427705714,26.0,215.91,215.88,9.84103486]
[1756427705919,9.84103486,215.89,215.8,5.29392029]
[1756427706243,66.9606449,216.0,215.8,5.29392029]
[1756427706244,13.59559401,215.85,215.82,9.84103486]
[1756427706426,9.84103486,215.93,215.84,9.84103486]
[1756427706617,27.52657083,216.0,215.83,0.66]
[1756427706618,13.59559401,215.92,215.85,9.84103486]
[1756427706825,10.56103486,215.96,215.89,9.84103486]
[1756427707023,10.56103486,215.96,215.9,9.84103486]
[1756427707321,0.28432314,215.94,215.91,9.84103486]
[1756427707526,13.59559401,215.95,215.91,9.84103486]
[1756427707839,13.59559401,215.95,215.9,9.84103486]
[1756427708044,0.28432314,215.94,215.9,9.84103486]
[1756427708232,13.59559401,215.95,215.9,9.84103486]
[1756427708654,13.05584894,216.0,215.86,48.13263226]
[1756427708655,10.125358,215.92,215.86,48.13263226]
[1756427708937,0.28432314,215.9,215.88,9.84103486]
[1756427709628,13.59559401,215.89,215.86,4.63263226]
[1756427709830,0.28432314,215.88,215.86,4.63263226]
[1756427710033,9.84103486,215.9,215.86,4.63263226]
[1756427710034,13.59559401,215.97,215.87,10.50103486]
[1756427710352,13.59559401,216.0,215.95,9.84103486]
[1756427710726,39.59559401,216.0,215.95,4.63070155]
[1756427710926,40.31559401,216.0,215.95,4.63070155]
[1756427711242,49.43662887,216.0,215.95,4.63070155]
[1756427711448,0.28432314,215.97,215.94,14.47194194]
[1756427712241,0.28432314,215.97,215.95,9.84103486]
[1756427712447,0.28432314,215.97,215.94,4.63090708]
[1756427712448,0.28432314,215.97,215.94,14.47194194]
[1756427712945,0.28432314,215.97,215.94,9.84103486]
[1756427713245,0.28432314,215.97,215.95,9.84103486]
[1756427713543,13.87991715,215.99,215.94,0.66]
[1756427713740,13.59559401,215.99,215.97,9.84103486]
[1756427714240,13.59559401,215.99,215.94,43.46]
[1756427714424,0.28432314,215.98,215.94,43.46]
[1756427714831,23.72095201,215.95,215.89,53.30103486]
[1756427715144,23.72095201,215.95,215.88,43.46]
[1756427715145,10.125358,215.93,215.88,43.46]
[1756427715443,10.125358,215.93,215.87,9.84103486]
[1756427716225,13.87991715,215.91,215.86,14.47366712]
[1756427716442,13.87991715,215.91,215.86,57.93366712]
[1756427716846,0.28432314,215.91,215.87,9.84103486]
[1756427717250,0.28432314,215.91,215.86,48.09263226]
[1756427717251,0.28432314,215.91,215.86,57.93366712]
[1756427717451,0.28432314,215.91,215.86,14.47366712]
[1756427717757,0.28432314,215.91,215.86,57.91366712]
[1756427717946,0.28432314,215.91,215.86,14.47366712]
[1756427718252,0.28432314,215.91,215.86,57.91366712]
[1756427718453,26.0,215.89,215.82,0.66]
[1756427718745,26.0,215.89,215.81,43.44]
[1756427718746,10.125358,215.85,215.81,43.44]
[1756427718950,10.125358,215.85,215.71,80.7]
[1756427718951,0.28432314,215.81,215.75,4.6349942]
[1756427719126,0.28432314,215.79,215.74,15.13623771]
[1756427719438,0.72,215.9,215.78,9.84103486]
[1756427719637,13.87991715,215.87,215.85,9.84103486]
[1756427719829,13.73775558,215.87,215.85,9.84103486]
[1756427720030,0.14216157,215.87,215.83,9.84103486]
[1756427720930,0.14216157,215.87,215.84,4.63306152]
[1756427721247,0.14216157,215.87,215.84,14.47409638]
[1756427721554,0.14216157,215.87,215.85,9.84103486]
[1756427721934,0.28432314,215.88,215.86,9.84103486]
[1756427722337,0.28432314,215.88,215.84,14.47409638]
[1756427722546,0.28432314,215.88,215.84,4.63306152]
[1756427722728,0.28432314,215.88,215.85,9.84103486]
[1756427722931,0.28432314,215.88,215.86,9.84103486]
[1756427723342,0.28432314,215.88,215.83,4.63327618]
[1756427723343,0.28432314,215.88,215.85,9.84103486]
[1756427723533,0.28432314,215.88,215.83,9.84103486]
[1756427723734,4.91653058,215.88,215.82,9.84103486]
[1756427723949,0.28432314,215.88,215.83,9.84103486]
[1756427724144,0.28432314,215.88,215.85,9.84103486]
[1756427724457,39.87991715,215.87,215.86,9.84103486]
[1756427724657,13.87991715,215.87,215.86,9.84103486]